[Event "Early-Titled-Tuesday-Blitz-May-28-2024"]
[Site "Chess.com"]
[Date "2024.05.28"]
[Round "1"]
[White "Grandmaster1369"]
[Black "Flaccidmoves"]
[Result "1/2-1/2"]
[WhiteElo "2804"]
[BlackElo "2467"]
[TimeControl "180+1"]
[EndTime "8:07:49 PDT"]
[Termination "Game drawn by repetition"]

1. e4 {[%clk 0:03:00.3]} 1... g6 {[%clk 0:03:00.9]} 2. d4 {[%clk 0:02:59.8]}
2... Bg7 {[%clk 0:03:01.5]} 3. Nc3 {[%clk 0:03:00.5]} 3... d6 {[%clk 0:03:02]}
4. Be3 {[%clk 0:03:00.8]} 4... a6 {[%clk 0:03:01.9]} 5. Qd2 {[%clk 0:03:01.1]}
5... b5 {[%clk 0:03:01.9]} 6. O-O-O {[%clk 0:03:01.8]} 6... Nf6 {[%clk
0:02:59.8]} 7. f3 {[%clk 0:03:02.1]} 7... O-O {[%clk 0:02:54.9]} 8. h4 {[%clk
0:03:02.4]} 8... h5 {[%clk 0:02:53.8]} 9. Bh6 {[%clk 0:03:00.6]} 9... b4 {[%clk
0:02:42.5]} 10. Nce2 {[%clk 0:03:00]} 10... c5 {[%clk 0:02:31.3]} 11. g4 {[%clk
0:02:59.7]} 11... Qa5 {[%clk 0:02:20.7]} 12. Kb1 {[%clk 0:02:52.9]} 12... Nc6
{[%clk 0:01:40.9]} 13. Bxg7 {[%clk 0:02:40.1]} 13... Kxg7 {[%clk 0:01:41.8]} 14.
d5 {[%clk 0:02:02.1]} 14... Ne5 {[%clk 0:01:41.2]} 15. Ng3 {[%clk 0:01:55.6]}
15... Nfxg4 {[%clk 0:01:27.2]} 16. fxg4 {[%clk 0:01:51.1]} 16... Bxg4 {[%clk
0:01:28.1]} 17. Be2 {[%clk 0:01:42.7]} 17... c4 {[%clk 0:01:19.1]} 18. Qd4
{[%clk 0:01:33.6]} 18... b3 {[%clk 0:01:07]} 19. cxb3 {[%clk 0:01:05.2]} 19...
cxb3 {[%clk 0:01:07.9]} 20. axb3 {[%clk 0:00:54.9]} 20... Kg8 {[%clk 0:01:08]}
21. Bxg4 {[%clk 0:00:52.8]} 21... Nxg4 {[%clk 0:01:08.9]} 22. N1e2 {[%clk
0:00:48.1]} 22... Rab8 {[%clk 0:01:08]} 23. Nc1 {[%clk 0:00:47.4]} 23... Rfc8
{[%clk 0:01:04.3]} 24. Rd3 {[%clk 0:00:45.4]} 24... Rb4 {[%clk 0:00:58.9]} 25.
Qg1 {[%clk 0:00:40.1]} 25... Qb5 {[%clk 0:00:57.5]} 26. Rc3 {[%clk 0:00:35.3]}
26... Rxc3 {[%clk 0:00:52]} 27. bxc3 {[%clk 0:00:36.2]} 27... Rxb3+ {[%clk
0:00:52.7]} 28. Nxb3 {[%clk 0:00:30.5]} 28... Qxb3+ {[%clk 0:00:53.6]} 29. Ka1
{[%clk 0:00:28.4]} 29... Qa3+ {[%clk 0:00:52.5]} 30. Kb1 {[%clk 0:00:28.6]}
30... Qb3+ {[%clk 0:00:53]} 31. Kc1 {[%clk 0:00:25.5]} 31... Qxc3+ {[%clk
0:00:52.9]} 32. Kd1 {[%clk 0:00:24.2]} 32... Qf3+ {[%clk 0:00:39.7]} 33. Ke1
{[%clk 0:00:21.4]} 33... Qc3+ {[%clk 0:00:34.2]} 34. Ke2 {[%clk 0:00:20.4]}
34... Qc2+ {[%clk 0:00:24.7]} 35. Kf1 {[%clk 0:00:20.5]} 35... Qd1+ {[%clk
0:00:15.4]} 36. Kg2 {[%clk 0:00:20.7]} 36... Qd2+ {[%clk 0:00:16]} 37. Kf1
{[%clk 0:00:11.4]} 37... Qd1+ {[%clk 0:00:15.4]} 38. Kg2 {[%clk 0:00:10.1]}
38... Qd2+ {[%clk 0:00:15.9]} 39. Kh3 {[%clk 0:00:09.9]} 39... Nf2+ {[%clk
0:00:15.9]} 40. Kg2 {[%clk 0:00:08.5]} 40... Nxe4+ {[%clk 0:00:16]} 41. Kf3
{[%clk 0:00:05.6]} 41... Nf6 {[%clk 0:00:09.6]} 42. Qe3 {[%clk 0:00:05.5]} 42...
Qxd5+ {[%clk 0:00:09.6]} 43. Ke2 {[%clk 0:00:05.6]} 43... Ng4 {[%clk 0:00:08.9]}
44. Qf3 {[%clk 0:00:03.6]} 44... Qc4+ {[%clk 0:00:08.4]} 45. Ke1 {[%clk
0:00:02.9]} 45... Qc1+ {[%clk 0:00:08.2]} 46. Ke2 {[%clk 0:00:02.3]} 46... Qc2+
{[%clk 0:00:08.2]} 47. Ke1 {[%clk 0:00:02.4]} 47... Qc1+ {[%clk 0:00:08.7]} 48.
Ke2 {[%clk 0:00:02.6]} 48... Qc2+ {[%clk 0:00:09.3]} 49. Ke1 {[%clk 0:00:02.7]}
49... Qc1+ {[%clk 0:00:09.8]} 1/2-1/2

[Event "Early-Titled-Tuesday-Blitz-May-28-2024"]
[Site "Chess.com"]
[Date "2024.05.28"]
[Round "1"]
[White "frankshar"]
[Black "jumpingknight20"]
[Result "1-0"]
[WhiteElo "2514"]
[BlackElo "2770"]
[TimeControl "180+1"]
[EndTime "8:07:51 PDT"]
[Termination "frankshar won on time"]

1. e4 {[%clk 0:03:00.9]} 1... e6 {[%clk 0:02:58.8]} 2. d4 {[%clk 0:02:59.8]}
2... d5 {[%clk 0:02:59.6]} 3. Nd2 {[%clk 0:03:00.2]} 3... Nc6 {[%clk 0:02:54.3]}
4. Ngf3 {[%clk 0:02:59.3]} 4... Nf6 {[%clk 0:02:49.2]} 5. e5 {[%clk 0:02:59]}
5... Nd7 {[%clk 0:02:49.5]} 6. Bd3 {[%clk 0:02:58.2]} 6... f6 {[%clk 0:02:47.8]}
7. Ng5 {[%clk 0:02:49]} 7... fxg5 {[%clk 0:02:26.4]} 8. Qh5+ {[%clk 0:02:48.3]}
8... g6 {[%clk 0:02:26.7]} 9. Bxg6+ {[%clk 0:02:47.6]} 9... hxg6 {[%clk
0:02:26.6]} 10. Qxh8 {[%clk 0:02:47.2]} 10... Nxd4 {[%clk 0:02:24.2]} 11. O-O
{[%clk 0:02:43.3]} 11... Nxc2 {[%clk 0:02:17.6]} 12. Nf3 {[%clk 0:02:41]} 12...
Qe7 {[%clk 0:01:59.8]} 13. Bxg5 {[%clk 0:02:37.5]} 13... Qg7 {[%clk 0:02:00.1]}
14. Qxg7 {[%clk 0:02:37.6]} 14... Bxg7 {[%clk 0:02:01]} 15. Rac1 {[%clk
0:02:37.8]} 15... Nb4 {[%clk 0:02:01.4]} 16. Rxc7 {[%clk 0:02:26.9]} 16... Nc6
{[%clk 0:01:53]} 17. Re1 {[%clk 0:02:26.9]} 17... Bf8 {[%clk 0:01:48.8]} 18. Rc1
{[%clk 0:02:14.6]} 18... Bb4 {[%clk 0:01:28.8]} 19. Nd4 {[%clk 0:02:12.5]} 19...
Ba5 {[%clk 0:01:21.7]} 20. Nb5 {[%clk 0:01:51.5]} 20... Kf8 {[%clk 0:01:16.8]}
21. b4 {[%clk 0:01:30.3]} 21... Bb6 {[%clk 0:01:06.6]} 22. a4 {[%clk 0:01:27.9]}
22... a5 {[%clk 0:00:49.2]} 23. Bd2 {[%clk 0:01:18.7]} 23... axb4 {[%clk
0:00:37.9]} 24. a5 {[%clk 0:01:01.8]} 24... Bxc7 {[%clk 0:00:27.3]} 25. Nxc7
{[%clk 0:01:01]} 25... Rxa5 {[%clk 0:00:18.1]} 26. Rxc6 {[%clk 0:01:00.4]} 26...
Ra1+ {[%clk 0:00:13.6]} 27. Rc1 {[%clk 0:01:00.1]} 27... Rxc1+ {[%clk
0:00:13.9]} 28. Bxc1 {[%clk 0:01:01]} 28... Nxe5 {[%clk 0:00:13.6]} 29. Bf4
{[%clk 0:00:54.9]} 29... Nd3 {[%clk 0:00:12.3]} 30. Bd6+ {[%clk 0:00:55]} 30...
Kf7 {[%clk 0:00:13]} 31. Nb5 {[%clk 0:00:53.9]} 31... b3 {[%clk 0:00:09.8]} 32.
Na3 {[%clk 0:00:52.9]} 32... Bd7 {[%clk 0:00:08.5]} 33. Kf1 {[%clk 0:00:52.2]}
33... e5 {[%clk 0:00:07.9]} 34. Ke2 {[%clk 0:00:51.8]} 34... e4 {[%clk
0:00:07.2]} 35. f3 {[%clk 0:00:51.1]} 35... Ke6 {[%clk 0:00:06.8]} 36. Bf8
{[%clk 0:00:49.1]} 36... b5 {[%clk 0:00:05.5]} 37. fxe4 {[%clk 0:00:47.9]} 37...
dxe4 {[%clk 0:00:06.4]} 38. Ke3 {[%clk 0:00:48.3]} 38... Kd5 {[%clk 0:00:06.9]}
39. Nb1 {[%clk 0:00:45.2]} 39... b4 {[%clk 0:00:07.2]} 40. Nd2 {[%clk
0:00:45.1]} 40... b2 {[%clk 0:00:06.7]} 41. h3 {[%clk 0:00:41.8]} 41... Ba4
{[%clk 0:00:06.4]} 42. g4 {[%clk 0:00:39.7]} 42... Bc2 {[%clk 0:00:06.3]} 43. h4
{[%clk 0:00:35.9]} 43... b1=Q {[%clk 0:00:06.7]} 44. Nxb1 {[%clk 0:00:35.2]}
44... Bxb1 {[%clk 0:00:07.6]} 45. h5 {[%clk 0:00:35.7]} 45... gxh5 {[%clk
0:00:08.5]} 46. gxh5 {[%clk 0:00:36.6]} 46... Ke6 {[%clk 0:00:02]} 47. Kxe4
{[%clk 0:00:33.3]} 47... b3 {[%clk 0:00:02.3]} 48. Bg7 {[%clk 0:00:30.5]} 48...
Kf7 {[%clk 0:00:00.5]} 49. Bc3 {[%clk 0:00:25.9]} 1-0

[Event "Early-Titled-Tuesday-Blitz-May-28-2024"]
[Site "Chess.com"]
[Date "2024.05.28"]
[Round "1"]
[White "Eliwood44"]
[Black "zimmm36"]
[Result "0-1"]
[WhiteElo "2439"]
[BlackElo "2783"]
[TimeControl "180+1"]
[EndTime "8:07:51 PDT"]
[Termination "zimmm36 won on time"]

1. d4 {[%clk 0:02:54.9]} 1... Nf6 {[%clk 0:02:57.7]} 2. Nf3 {[%clk 0:02:54.6]}
2... g6 {[%clk 0:02:57.7]} 3. Nc3 {[%clk 0:02:53.9]} 3... d5 {[%clk 0:02:57.6]}
4. Bf4 {[%clk 0:02:53.7]} 4... Bg7 {[%clk 0:02:57.3]} 5. Nb5 {[%clk 0:02:52.8]}
5... Na6 {[%clk 0:02:57.4]} 6. e3 {[%clk 0:02:53.1]} 6... O-O {[%clk 0:02:56.7]}
7. h3 {[%clk 0:02:53.4]} 7... c6 {[%clk 0:02:57.2]} 8. Nc3 {[%clk 0:02:53.2]}
8... Qb6 {[%clk 0:02:57.8]} 9. Rb1 {[%clk 0:02:52.8]} 9... Ne4 {[%clk
0:02:58.2]} 10. Nxe4 {[%clk 0:02:50.9]} 10... dxe4 {[%clk 0:02:58.1]} 11. Nd2
{[%clk 0:02:51.3]} 11... Qa5 {[%clk 0:02:57.2]} 12. Bc4 {[%clk 0:02:44.3]} 12...
c5 {[%clk 0:02:55.3]} 13. c3 {[%clk 0:02:43.5]} 13... cxd4 {[%clk 0:02:54.5]}
14. exd4 {[%clk 0:02:43]} 14... Bf5 {[%clk 0:02:52.9]} 15. Be3 {[%clk
0:02:35.9]} 15... e5 {[%clk 0:02:24]} 16. dxe5 {[%clk 0:02:33.6]} 16... Bxe5
{[%clk 0:02:22.1]} 17. O-O {[%clk 0:02:32.4]} 17... Rad8 {[%clk 0:02:17.1]} 18.
Qe2 {[%clk 0:02:24.7]} 18... Qc7 {[%clk 0:01:58.3]} 19. Bxa6 {[%clk 0:02:16]}
19... bxa6 {[%clk 0:01:59.2]} 20. Qxa6 {[%clk 0:02:11.1]} 20... Rd3 {[%clk
0:01:53.8]} 21. Rfe1 {[%clk 0:01:55.8]} 21... Rfd8 {[%clk 0:01:52.1]} 22. Nf1
{[%clk 0:01:53.8]} 22... R8d7 {[%clk 0:01:48]} 23. Rbc1 {[%clk 0:01:46.4]} 23...
Be6 {[%clk 0:01:45.9]} 24. Bd4 {[%clk 0:01:35.2]} 24... Bxd4 {[%clk 0:01:35.6]}
25. cxd4 {[%clk 0:01:34.6]} 25... Qf4 {[%clk 0:01:35.9]} 26. Rc6 {[%clk
0:01:02.5]} 26... R3xd4 {[%clk 0:01:26.5]} 27. a4 {[%clk 0:00:48.9]} 27... Kg7
{[%clk 0:01:24.5]} 28. Qb5 {[%clk 0:00:39.7]} 28... R7d5 {[%clk 0:01:19.4]} 29.
Qe2 {[%clk 0:00:33.5]} 29... Rxa4 {[%clk 0:01:14.5]} 30. Rec1 {[%clk 0:00:31.1]}
30... Rb4 {[%clk 0:01:08.5]} 31. Ne3 {[%clk 0:00:28.4]} 31... Rdb5 {[%clk
0:01:08.4]} 32. R1c2 {[%clk 0:00:15.3]} 32... Qe5 {[%clk 0:01:08.6]} 33. Ng4
{[%clk 0:00:11.5]} 33... Bxg4 {[%clk 0:01:06.5]} 34. Qxg4 {[%clk 0:00:09.3]}
34... Rxb2 {[%clk 0:01:06.8]} 35. Rxb2 {[%clk 0:00:09.3]} 35... Rxb2 {[%clk
0:01:07]} 36. g3 {[%clk 0:00:09.6]} 36... e3 {[%clk 0:01:05.2]} 37. Rc1 {[%clk
0:00:05.9]} 37... Rxf2 {[%clk 0:01:03.6]} 38. Re1 {[%clk 0:00:05.5]} 38... Qb2
{[%clk 0:01:01.9]} 39. Qe4 {[%clk 0:00:04.9]} 39... Rh2 {[%clk 0:00:56.3]} 40.
Rf1 {[%clk 0:00:01.5]} 40... Rxh3 {[%clk 0:00:50.5]} 41. Rxf7+ {[%clk
0:00:01.2]} 41... Kxf7 {[%clk 0:00:50.5]} 42. Qd5+ {[%clk 0:00:01.1]} 42... Kf6
{[%clk 0:00:47.9]} 43. Qd8+ {[%clk 0:00:01]} 43... Kf5 {[%clk 0:00:43.8]} 44.
Qd7+ {[%clk 0:00:01]} 44... Ke4 {[%clk 0:00:43.4]} 45. Qe6+ {[%clk 0:00:01.2]}
45... Kf3 {[%clk 0:00:35.5]} 46. Qd5+ {[%clk 0:00:01.8]} 46... Kxg3 {[%clk
0:00:25]} 47. Qd6+ {[%clk 0:00:01.6]} 47... Kg4 {[%clk 0:00:21.5]} 48. Qe6+
{[%clk 0:00:01.3]} 48... Kg5 {[%clk 0:00:20.1]} 49. Qe7+ {[%clk 0:00:01.2]}
49... Kh6 {[%clk 0:00:19.9]} 50. Qf8+ {[%clk 0:00:01.1]} 50... Qg7 {[%clk
0:00:20]} 51. Qf4+ {[%clk 0:00:01.7]} 51... g5 {[%clk 0:00:20.6]} 52. Qd6+
{[%clk 0:00:02]} 52... Qg6 {[%clk 0:00:21.1]} 53. Qf8+ {[%clk 0:00:01]} 53...
Kh5 {[%clk 0:00:21.7]} 54. Qf1 {[%clk 0:00:01]} 54... Qe6 {[%clk 0:00:19.6]} 0-1

[Event "Early-Titled-Tuesday-Blitz-May-28-2024"]
[Site "Chess.com"]
[Date "2024.05.28"]
[Round "1"]
[White "IamSchrodingersCat"]
[Black "stepanosinovsky"]
[Result "1-0"]
[WhiteElo "2660"]
[BlackElo "2360"]
[TimeControl "180+1"]
[EndTime "8:07:51 PDT"]
[Termination "IamSchrodingersCat won on time"]

1. e4 {[%clk 0:02:47]} 1... e5 {[%clk 0:01:54.1]} 2. Nf3 {[%clk 0:02:44.7]} 2...
Nc6 {[%clk 0:01:54.3]} 3. Bb5 {[%clk 0:02:44.4]} 3... a6 {[%clk 0:01:54.1]} 4.
Ba4 {[%clk 0:02:44.8]} 4... Nf6 {[%clk 0:01:54]} 5. d3 {[%clk 0:02:44.6]} 5...
Be7 {[%clk 0:01:52.9]} 6. O-O {[%clk 0:02:44.1]} 6... d6 {[%clk 0:01:52]} 7. c3
{[%clk 0:02:43.9]} 7... O-O {[%clk 0:01:51.7]} 8. Re1 {[%clk 0:02:43.5]} 8... h6
{[%clk 0:01:49.6]} 9. Nbd2 {[%clk 0:02:43]} 9... Nh7 {[%clk 0:01:49.2]} 10. Nf1
{[%clk 0:02:39.4]} 10... f5 {[%clk 0:01:46.3]} 11. h3 {[%clk 0:02:33.5]} 11...
f4 {[%clk 0:01:45.4]} 12. d4 {[%clk 0:02:29]} 12... Bf6 {[%clk 0:01:44.5]} 13.
Bxc6 {[%clk 0:02:15.1]} 13... bxc6 {[%clk 0:01:43.3]} 14. dxe5 {[%clk
0:02:15.1]} 14... dxe5 {[%clk 0:01:42.9]} 15. b3 {[%clk 0:02:10.1]} 15... Kh8
{[%clk 0:01:40.4]} 16. Ba3 {[%clk 0:02:04.8]} 16... Rg8 {[%clk 0:01:39.9]} 17.
Qxd8 {[%clk 0:02:00.9]} 17... Rxd8 {[%clk 0:01:39]} 18. Rad1 {[%clk 0:01:59]}
18... Be6 {[%clk 0:01:35.1]} 19. N1h2 {[%clk 0:01:45.4]} 19... h5 {[%clk
0:01:30.2]} 20. Nf1 {[%clk 0:01:40.6]} 20... Nf8 {[%clk 0:01:28.4]} 21. Rd2
{[%clk 0:01:25.9]} 21... Rxd2 {[%clk 0:01:26.2]} 22. N1xd2 {[%clk 0:01:26.8]}
22... g5 {[%clk 0:01:25.2]} 23. Rd1 {[%clk 0:01:18.3]} 23... Rd8 {[%clk
0:01:09.1]} 24. Bxf8 {[%clk 0:01:04]} 24... Rxf8 {[%clk 0:01:08.8]} 25. Nc4
{[%clk 0:01:04.4]} 25... Bxc4 {[%clk 0:00:55.8]} 26. bxc4 {[%clk 0:01:05.3]}
26... g4 {[%clk 0:00:55.3]} 27. hxg4 {[%clk 0:00:50.1]} 27... hxg4 {[%clk
0:00:56.2]} 28. Nh2 {[%clk 0:00:50.2]} 28... g3 {[%clk 0:00:45.6]} 29. fxg3
{[%clk 0:00:51.1]} 29... fxg3 {[%clk 0:00:45.9]} 30. Nf1 {[%clk 0:00:51.1]}
30... Be7 {[%clk 0:00:42.3]} 31. Nxg3 {[%clk 0:00:42.1]} 31... Bc5+ {[%clk
0:00:41.9]} 32. Kh2 {[%clk 0:00:41.9]} 32... Rf4 {[%clk 0:00:38.5]} 33. Rd8+
{[%clk 0:00:26.8]} 33... Kh7 {[%clk 0:00:36.1]} 34. Rd7+ {[%clk 0:00:22.4]}
34... Kg6 {[%clk 0:00:35.3]} 35. Kh3 {[%clk 0:00:16.4]} 35... Bd6 {[%clk
0:00:14.7]} 36. c5 {[%clk 0:00:16.2]} 36... Bxc5 {[%clk 0:00:12.6]} 37. Rxc7
{[%clk 0:00:16.4]} 37... Kg5 {[%clk 0:00:10]} 38. Rg7+ {[%clk 0:00:12.8]} 38...
Kh6 {[%clk 0:00:07.4]} 39. Rc7 {[%clk 0:00:10.3]} 39... Kg5 {[%clk 0:00:06.3]}
40. Rg7+ {[%clk 0:00:07.4]} 40... Kh6 {[%clk 0:00:06.4]} 41. Rg8 {[%clk
0:00:06.4]} 41... Kh7 {[%clk 0:00:04.2]} 42. Rg5 {[%clk 0:00:05.1]} 42... Bd6
{[%clk 0:00:01.1]} 43. Nf5 {[%clk 0:00:03.8]} 1-0

[Event "Early-Titled-Tuesday-Blitz-May-28-2024"]
[Site "Chess.com"]
[Date "2024.05.28"]
[Round "1"]
[White "EvgenyBurmakin"]
[Black "Skatchkov_V"]
[Result "0-1"]
[WhiteElo "2341"]
[BlackElo "2648"]
[TimeControl "180+1"]
[EndTime "8:07:52 PDT"]
[Termination "Skatchkov_V won on time"]

1. Nf3 {[%clk 0:02:59.4]} 1... d5 {[%clk 0:01:03.9]} 2. b3 {[%clk 0:02:59.4]}
2... Bf5 {[%clk 0:01:02.6]} 3. Bb2 {[%clk 0:02:59.5]} 3... e6 {[%clk 0:01:03.3]}
4. e3 {[%clk 0:03:00]} 4... h6 {[%clk 0:01:04]} 5. Be2 {[%clk 0:02:56]} 5... c6
{[%clk 0:01:04.3]} 6. O-O {[%clk 0:02:55.9]} 6... Nf6 {[%clk 0:01:04.8]} 7. c4
{[%clk 0:02:55.1]} 7... Nbd7 {[%clk 0:01:05.1]} 8. Nc3 {[%clk 0:02:54.9]} 8...
Bd6 {[%clk 0:01:05.3]} 9. cxd5 {[%clk 0:02:47.9]} 9... exd5 {[%clk 0:01:06.2]}
10. d4 {[%clk 0:02:43.4]} 10... Qe7 {[%clk 0:01:03.2]} 11. Bd3 {[%clk
0:02:39.7]} 11... Bg4 {[%clk 0:01:03]} 12. Re1 {[%clk 0:02:34.5]} 12... Ne4
{[%clk 0:00:53.4]} 13. Be2 {[%clk 0:02:21.8]} 13... Bxf3 {[%clk 0:00:53.3]} 14.
Bxf3 {[%clk 0:02:21.3]} 14... Bxh2+ {[%clk 0:00:43.9]} 15. Kf1 {[%clk
0:02:11.5]} 15... Bd6 {[%clk 0:00:31.3]} 16. Bxe4 {[%clk 0:01:42.6]} 16... dxe4
{[%clk 0:00:31.5]} 17. Qg4 {[%clk 0:01:42.3]} 17... Nf6 {[%clk 0:00:29.9]} 18.
Qh3 {[%clk 0:01:27.1]} 18... O-O {[%clk 0:00:28.2]} 19. Rad1 {[%clk 0:01:23.8]}
19... Rae8 {[%clk 0:00:28.4]} 20. d5 {[%clk 0:01:20.9]} 20... Be5 {[%clk
0:00:28.8]} 21. dxc6 {[%clk 0:01:15.2]} 21... bxc6 {[%clk 0:00:29.7]} 22. Na4
{[%clk 0:01:12.5]} 22... Bxb2 {[%clk 0:00:28.1]} 23. Nxb2 {[%clk 0:01:13.4]}
23... Nd5 {[%clk 0:00:26.2]} 24. Nc4 {[%clk 0:01:10.7]} 24... f5 {[%clk
0:00:24.7]} 25. Na5 {[%clk 0:01:06.3]} 25... Qc5 {[%clk 0:00:20.3]} 26. Nc4
{[%clk 0:00:49.5]} 26... f4 {[%clk 0:00:20.4]} 27. Kg1 {[%clk 0:00:37.9]} 27...
f3 {[%clk 0:00:19.6]} 28. g3 {[%clk 0:00:36.5]} 28... Nf6 {[%clk 0:00:16.2]} 29.
Rd6 {[%clk 0:00:27.2]} 29... Rd8 {[%clk 0:00:14.5]} 30. Red1 {[%clk 0:00:26.5]}
30... Rxd6 {[%clk 0:00:14.5]} 31. Rxd6 {[%clk 0:00:27.1]} 31... Kh8 {[%clk
0:00:09.8]} 32. Qe6 {[%clk 0:00:17.8]} 32... Qb4 {[%clk 0:00:09.7]} 33. Rd1
{[%clk 0:00:17.4]} 33... Qc3 {[%clk 0:00:06.6]} 34. Ne5 {[%clk 0:00:15.6]} 34...
Re8 {[%clk 0:00:05.7]} 35. Nf7+ {[%clk 0:00:11.2]} 35... Kh7 {[%clk 0:00:05.3]}
36. Qf5+ {[%clk 0:00:06.5]} 36... g6 {[%clk 0:00:06]} 37. Qf4 {[%clk 0:00:05.7]}
37... Kg7 {[%clk 0:00:06.1]} 38. Nd6 {[%clk 0:00:05.9]} 38... Re7 {[%clk
0:00:05.5]} 39. Nc4 {[%clk 0:00:05.6]} 39... Qc2 {[%clk 0:00:05.2]} 40. Qd6
{[%clk 0:00:05.6]} 40... Rd7 {[%clk 0:00:04.5]} 41. Qxd7+ {[%clk 0:00:05.6]}
41... Nxd7 {[%clk 0:00:05.4]} 42. Rxd7+ {[%clk 0:00:05.8]} 42... Kf6 {[%clk
0:00:06]} 43. Rd2 {[%clk 0:00:02.3]} 43... Qc1+ {[%clk 0:00:06.1]} 44. Kh2
{[%clk 0:00:02.8]} 44... Qf1 {[%clk 0:00:06.2]} 45. Rd6+ {[%clk 0:00:02]} 45...
Ke7 {[%clk 0:00:06]} 0-1

[Event "Early-Titled-Tuesday-Blitz-May-28-2024"]
[Site "Chess.com"]
[Date "2024.05.28"]
[Round "1"]
[White "Matols"]
[Black "Karttunen"]
[Result "1/2-1/2"]
[WhiteElo "2358"]
[BlackElo "2645"]
[TimeControl "180+1"]
[EndTime "8:07:53 PDT"]
[Termination "Game drawn by repetition"]

1. d4 {[%clk 0:02:57.9]} 1... Nf6 {[%clk 0:02:59.1]} 2. c4 {[%clk 0:02:57.4]}
2... e6 {[%clk 0:02:59.1]} 3. g3 {[%clk 0:02:57.6]} 3... d5 {[%clk 0:02:59.1]}
4. Nf3 {[%clk 0:02:57.2]} 4... Bb4+ {[%clk 0:02:59]} 5. Bd2 {[%clk 0:02:56.8]}
5... a5 {[%clk 0:02:59.1]} 6. Bg2 {[%clk 0:02:56.2]} 6... dxc4 {[%clk
0:02:57.2]} 7. O-O {[%clk 0:02:51.5]} 7... b5 {[%clk 0:02:55.6]} 8. a4 {[%clk
0:02:45.5]} 8... c6 {[%clk 0:02:54.6]} 9. axb5 {[%clk 0:02:42.1]} 9... Bxd2
{[%clk 0:02:54.3]} 10. Nfxd2 {[%clk 0:02:29.8]} 10... Qxd4 {[%clk 0:02:53.6]}
11. bxc6 {[%clk 0:02:23.5]} 11... Nd5 {[%clk 0:02:50.5]} 12. Qa4 {[%clk
0:02:10.1]} 12... O-O {[%clk 0:01:59.6]} 13. Nxc4 {[%clk 0:02:08.9]} 13... Ba6
{[%clk 0:01:47.2]} 14. Nbd2 {[%clk 0:01:45.4]} 14... Qc5 {[%clk 0:01:09]} 15.
Nxa5 {[%clk 0:01:15.8]} 15... Bb5 {[%clk 0:01:06.7]} 16. Qb3 {[%clk 0:00:53.4]}
16... Nxc6 {[%clk 0:01:04.5]} 17. Nxc6 {[%clk 0:00:51.5]} 17... Bxc6 {[%clk
0:00:58]} 18. Rac1 {[%clk 0:00:47.2]} 18... Qb5 {[%clk 0:00:55.9]} 19. Qxb5
{[%clk 0:00:45.4]} 19... Bxb5 {[%clk 0:00:55.9]} 20. Bxd5 {[%clk 0:00:41.8]}
20... exd5 {[%clk 0:00:55.5]} 21. Rfe1 {[%clk 0:00:40.6]} 21... Rfc8 {[%clk
0:00:52.8]} 22. e3 {[%clk 0:00:36.6]} 22... Kf8 {[%clk 0:00:47.8]} 23. Nb3
{[%clk 0:00:32.9]} 23... Bc4 {[%clk 0:00:45.3]} 24. Nd4 {[%clk 0:00:32.5]} 24...
Rcb8 {[%clk 0:00:43.7]} 25. b3 {[%clk 0:00:20.4]} 25... Bxb3 {[%clk 0:00:39.8]}
26. Nxb3 {[%clk 0:00:21.3]} 26... Rxb3 {[%clk 0:00:40]} 27. Rc5 {[%clk
0:00:20.6]} 27... Rd3 {[%clk 0:00:39.5]} 28. Rec1 {[%clk 0:00:19.6]} 28... Rd2
{[%clk 0:00:32.1]} 29. Rc8+ {[%clk 0:00:16.5]} 29... Rxc8 {[%clk 0:00:31.4]} 30.
Rxc8+ {[%clk 0:00:17.4]} 30... Ke7 {[%clk 0:00:31.8]} 31. Rc7+ {[%clk
0:00:17.3]} 31... Ke6 {[%clk 0:00:32.1]} 32. Kg2 {[%clk 0:00:17.6]} 32... h5
{[%clk 0:00:28.6]} 33. h4 {[%clk 0:00:17.2]} 33... g6 {[%clk 0:00:28]} 34. Kf3
{[%clk 0:00:17.3]} 34... f6 {[%clk 0:00:24.2]} 35. Ra7 {[%clk 0:00:17.7]} 35...
g5 {[%clk 0:00:23.3]} 36. hxg5 {[%clk 0:00:17]} 36... fxg5 {[%clk 0:00:23.6]}
37. Rh7 {[%clk 0:00:17.5]} 37... g4+ {[%clk 0:00:17.9]} 38. Kg2 {[%clk
0:00:17.4]} 38... d4 {[%clk 0:00:18.5]} 39. exd4 {[%clk 0:00:17]} 39... Rxd4
{[%clk 0:00:19.2]} 40. Rxh5 {[%clk 0:00:17.3]} 40... Ra4 {[%clk 0:00:17.2]} 41.
Rg5 {[%clk 0:00:17.3]} 41... Kf6 {[%clk 0:00:17]} 42. Rb5 {[%clk 0:00:17.2]}
42... Kg6 {[%clk 0:00:16.1]} 43. Rb2 {[%clk 0:00:17.1]} 43... Rc4 {[%clk
0:00:16]} 44. f3 {[%clk 0:00:16.9]} 44... gxf3+ {[%clk 0:00:15.8]} 45. Kxf3
{[%clk 0:00:17.8]} 45... Kg7 {[%clk 0:00:15.8]} 46. Rb6 {[%clk 0:00:16.9]} 46...
Ra4 {[%clk 0:00:15.2]} 47. g4 {[%clk 0:00:16.7]} 47... Rc4 {[%clk 0:00:15.2]}
48. Kg3 {[%clk 0:00:16.6]} 48... Kg8 {[%clk 0:00:14.6]} 49. Kh4 {[%clk
0:00:17.1]} 49... Rc5 {[%clk 0:00:14.7]} 50. Rb7 {[%clk 0:00:16.6]} 50... Rd5
{[%clk 0:00:14]} 51. g5 {[%clk 0:00:16.6]} 51... Rd1 {[%clk 0:00:12.1]} 52. Kh5
{[%clk 0:00:17.1]} 52... Rd6 {[%clk 0:00:10.3]} 53. g6 {[%clk 0:00:16.3]} 53...
Rd1 {[%clk 0:00:10.2]} 54. Kh6 {[%clk 0:00:16.8]} 54... Rh1+ {[%clk 0:00:10]}
55. Kg5 {[%clk 0:00:17.4]} 55... Rg1+ {[%clk 0:00:10.5]} 56. Kf6 {[%clk
0:00:18]} 56... Rf1+ {[%clk 0:00:11]} 57. Kg5 {[%clk 0:00:18.6]} 57... Rg1+
{[%clk 0:00:11.5]} 58. Kf6 {[%clk 0:00:19.2]} 58... Rf1+ {[%clk 0:00:12]} 59.
Kg5 {[%clk 0:00:19.9]} 59... Rg1+ {[%clk 0:00:12.5]} 1/2-1/2